[Event "Late-Titled-Tuesday-Blitz-September-12-2023"]
[Site "Chess.com"]
[Date "2023.09.12"]
[Round "9"]
[White "petr577"]
[Black "Piotrek1979"]
[Result "1-0"]
[WhiteElo "2337"]
[BlackElo "2441"]
[TimeControl "180+1"]
[EndTime "15:40:45 PDT"]
[Termination "petr577 won by resignation"]

1. e4 {[%clk 0:02:56.1]} 1... c6 {[%clk 0:02:59.3]} 2. d4 {[%clk 0:02:55.7]}
2... d5 {[%clk 0:03:00.1]} 3. exd5 {[%clk 0:02:56.6]} 3... cxd5 {[%clk
0:02:59.4]} 4. c4 {[%clk 0:02:57.5]} 4... Nf6 {[%clk 0:02:57.9]} 5. Nc3 {[%clk
0:02:57.9]} 5... e6 {[%clk 0:02:57.6]} 6. Nf3 {[%clk 0:02:57.2]} 6... Bb4 {[%clk
0:02:56.7]} 7. Bd3 {[%clk 0:02:57.7]} 7... dxc4 {[%clk 0:02:55.5]} 8. Bxc4
{[%clk 0:02:58.6]} 8... O-O {[%clk 0:02:54.4]} 9. O-O {[%clk 0:02:59.1]} 9... b6
{[%clk 0:02:52.8]} 10. Bg5 {[%clk 0:02:54.3]} 10... Bb7 {[%clk 0:02:51.6]} 11.
Qd3 {[%clk 0:02:47.2]} 11... Nbd7 {[%clk 0:02:46.8]} 12. a3 {[%clk 0:02:40.4]}
12... Bxc3 {[%clk 0:02:45.8]} 13. bxc3 {[%clk 0:02:39.5]} 13... Rc8 {[%clk
0:02:42]} 14. Rac1 {[%clk 0:02:34.1]} 14... Bxf3 {[%clk 0:02:38.8]} 15. gxf3
{[%clk 0:02:33.2]} 15... h6 {[%clk 0:02:30.8]} 16. Bf4 {[%clk 0:02:26.2]} 16...
Nd5 {[%clk 0:02:28.6]} 17. Bg3 {[%clk 0:02:16.1]} 17... Qg5 {[%clk 0:02:25.1]}
18. Rfe1 {[%clk 0:01:59]} 18... Nf4 {[%clk 0:02:19.3]} 19. Qf1 {[%clk
0:01:57.3]} 19... Nf6 {[%clk 0:02:15.5]} 20. Ba6 {[%clk 0:01:07]} 20... Rcd8
{[%clk 0:02:04.3]} 21. Re5 {[%clk 0:00:59]} 21... Qg6 {[%clk 0:02:03.3]} 22.
Rce1 {[%clk 0:00:37.8]} 22... Rd5 {[%clk 0:01:58.5]} 23. Kh1 {[%clk 0:00:20.1]}
23... N4h5 {[%clk 0:01:41.6]} 24. Bd3 {[%clk 0:00:18.1]} 24... Nxg3+ {[%clk
0:01:24.1]} 25. hxg3 {[%clk 0:00:19]} 25... Rxe5 {[%clk 0:01:23.5]} 26. Rxe5
{[%clk 0:00:19.3]} 26... Ne4 {[%clk 0:01:18.7]} 27. Bxe4 {[%clk 0:00:18.4]}
27... Qf6 {[%clk 0:01:19.6]} 28. Qe2 {[%clk 0:00:15.5]} 28... Rd8 {[%clk
0:01:20]} 29. Bc2 {[%clk 0:00:15.2]} 29... g6 {[%clk 0:01:20]} 30. Kg2 {[%clk
0:00:15.1]} 30... Kg7 {[%clk 0:01:20.5]} 31. Rb5 {[%clk 0:00:14]} 31... h5
{[%clk 0:01:20.5]} 32. Qe5 {[%clk 0:00:14.1]} 32... Rc8 {[%clk 0:01:20.5]} 33.
Qxf6+ {[%clk 0:00:13.8]} 33... Kxf6 {[%clk 0:01:21.4]} 34. Rb3 {[%clk
0:00:13.9]} 34... Rc4 {[%clk 0:01:21.4]} 35. Bd3 {[%clk 0:00:14.2]} 35... Rc7
{[%clk 0:01:22.3]} 36. f4 {[%clk 0:00:14.5]} 36... Ke7 {[%clk 0:01:21.7]} 37.
Kf3 {[%clk 0:00:14.8]} 37... Kd6 {[%clk 0:01:22.6]} 38. Ke4 {[%clk 0:00:15.1]}
38... Rc8 {[%clk 0:01:16.4]} 39. Ba6 {[%clk 0:00:14.6]} 39... Rd8 {[%clk
0:01:15.2]} 40. Kd3 {[%clk 0:00:14.1]} 40... h4 {[%clk 0:01:15.3]} 41. Rb1
{[%clk 0:00:13.1]} 41... Rh8 {[%clk 0:01:16.2]} 42. Rh1 {[%clk 0:00:12.6]} 42...
h3 {[%clk 0:01:15.2]} 43. Bb7 {[%clk 0:00:12.7]} 43... h2 {[%clk 0:01:16.1]} 44.
Bf3 {[%clk 0:00:12.3]} 44... f6 {[%clk 0:01:15.9]} 45. Ke2 {[%clk 0:00:12.7]}
45... e5 {[%clk 0:01:16.3]} 46. dxe5+ {[%clk 0:00:13.6]} 46... fxe5 {[%clk
0:01:16.5]} 47. fxe5+ {[%clk 0:00:14.5]} 47... Kxe5 {[%clk 0:01:16.8]} 48. Kf1
{[%clk 0:00:13.5]} 48... Rc8 {[%clk 0:01:14]} 49. Kg2 {[%clk 0:00:12.6]} 49...
Rxc3 {[%clk 0:01:14.9]} 50. a4 {[%clk 0:00:12.6]} 50... Ra3 {[%clk 0:01:14]} 51.
Bc6 {[%clk 0:00:12.7]} 51... Kd6 {[%clk 0:01:12.6]} 52. Be8 {[%clk 0:00:12.9]}
52... Ke7 {[%clk 0:01:07.8]} 53. Bb5 {[%clk 0:00:12.8]} 53... a6 {[%clk
0:01:06.8]} 54. Bxa6 {[%clk 0:00:11.1]} 54... Rxa4 {[%clk 0:01:07.2]} 55. Bd3
{[%clk 0:00:11.1]} 55... g5 {[%clk 0:01:06]} 56. Rxh2 {[%clk 0:00:11]} 56... g4
{[%clk 0:01:06.1]} 57. Rh6 {[%clk 0:00:09.9]} 57... Rb4 {[%clk 0:01:05.5]} 58.
Rg6 {[%clk 0:00:06.8]} 58... Kf7 {[%clk 0:01:04.2]} 59. Rg5 {[%clk 0:00:07.3]}
59... Kf6 {[%clk 0:01:03.9]} 60. Rb5 {[%clk 0:00:07.3]} 60... Rd4 {[%clk
0:01:01.8]} 61. Rxb6+ {[%clk 0:00:07.5]} 61... Ke5 {[%clk 0:01:02]} 62. Be2
{[%clk 0:00:07.8]} 62... Rd2 {[%clk 0:00:59.1]} 63. Bxg4 {[%clk 0:00:07.2]}
63... Ra2 {[%clk 0:00:52.2]} 64. Rb5+ {[%clk 0:00:06.8]} 64... Kd4 {[%clk
0:00:52]} 65. Bf3 {[%clk 0:00:07.7]} 65... Ra7 {[%clk 0:00:46.2]} 66. Rd5+
{[%clk 0:00:08.6]} 66... Kc4 {[%clk 0:00:45.4]} 67. Rd8 {[%clk 0:00:09.2]} 67...
Ra1 {[%clk 0:00:42.9]} 68. g4 {[%clk 0:00:09.1]} 68... Ra5 {[%clk 0:00:41.9]}
69. Kg3 {[%clk 0:00:09.2]} 69... Ra1 {[%clk 0:00:41.6]} 70. Bg2 {[%clk
0:00:08.9]} 70... Ra3+ {[%clk 0:00:40.3]} 71. Kh4 {[%clk 0:00:09.3]} 71... Kc5
{[%clk 0:00:39.8]} 72. f4 {[%clk 0:00:08.6]} 72... Ra2 {[%clk 0:00:40.7]} 73.
Kg3 {[%clk 0:00:08.2]} 73... Ra3+ {[%clk 0:00:40.5]} 74. Bf3 {[%clk 0:00:08.7]}
74... Ra1 {[%clk 0:00:41.4]} 75. f5 {[%clk 0:00:09.2]} 75... Rg1+ {[%clk
0:00:37.3]} 76. Kf4 {[%clk 0:00:09.3]} 76... Kb6 {[%clk 0:00:32.3]} 77. f6
{[%clk 0:00:09.3]} 77... Kc7 {[%clk 0:00:33.2]} 78. Rd3 {[%clk 0:00:08.8]} 78...
Ra1 {[%clk 0:00:31.2]} 79. g5 {[%clk 0:00:09.1]} 79... Ra4+ {[%clk 0:00:29.1]}
80. Be4 {[%clk 0:00:09.3]} 80... Rb4 {[%clk 0:00:28.3]} 81. g6 {[%clk
0:00:09.7]} 81... Rb8 {[%clk 0:00:29.2]} 82. f7 {[%clk 0:00:10.1]} 82... Rf8
{[%clk 0:00:29.4]} 83. Kf5 {[%clk 0:00:10.3]} 1-0

[Event "Late-Titled-Tuesday-Blitz-September-12-2023"]
[Site "Chess.com"]
[Date "2023.09.12"]
[Round "9"]
[White "Nekoo04"]
[Black "xozr"]
[Result "1-0"]
[WhiteElo "2291"]
[BlackElo "2351"]
[TimeControl "180+1"]
[EndTime "15:40:47 PDT"]
[Termination "Nekoo04 won by resignation"]

1. d4 {[%clk 0:02:44.9]} 1... Nf6 {[%clk 0:02:38.5]} 2. c4 {[%clk 0:02:43.8]}
2... g6 {[%clk 0:02:39.4]} 3. Nc3 {[%clk 0:02:43.3]} 3... Bg7 {[%clk 0:02:39.9]}
4. e4 {[%clk 0:02:39.7]} 4... d6 {[%clk 0:02:33.2]} 5. Nf3 {[%clk 0:02:34]} 5...
O-O {[%clk 0:02:30.8]} 6. Be2 {[%clk 0:02:34.3]} 6... c6 {[%clk 0:02:28.4]} 7.
O-O {[%clk 0:02:30.7]} 7... Na6 {[%clk 0:02:25.5]} 8. Bg5 {[%clk 0:02:22]} 8...
h6 {[%clk 0:02:20.8]} 9. Bh4 {[%clk 0:02:21.3]} 9... Qc7 {[%clk 0:02:15]} 10.
Qd2 {[%clk 0:02:15.9]} 10... Kh7 {[%clk 0:02:12.3]} 11. Rad1 {[%clk 0:02:13.2]}
11... Bg4 {[%clk 0:02:05.8]} 12. h3 {[%clk 0:02:09.8]} 12... Bxf3 {[%clk
0:02:05.6]} 13. Bxf3 {[%clk 0:02:10.7]} 13... e5 {[%clk 0:02:06.2]} 14. d5
{[%clk 0:01:54.2]} 14... c5 {[%clk 0:02:03.1]} 15. Be2 {[%clk 0:01:50.1]} 15...
Ng8 {[%clk 0:01:54.4]} 16. Nb5 {[%clk 0:01:43.3]} 16... Qd7 {[%clk 0:01:52.2]}
17. Bg3 {[%clk 0:01:43]} 17... f5 {[%clk 0:01:51.9]} 18. f4 {[%clk 0:01:40.1]}
18... Nf6 {[%clk 0:01:23.5]} 19. exf5 {[%clk 0:01:33.3]} 19... gxf5 {[%clk
0:01:23.3]} 20. fxe5 {[%clk 0:01:26.9]} 20... Ne4 {[%clk 0:01:23.3]} 21. e6
{[%clk 0:01:12.8]} 21... Nxd2 {[%clk 0:01:23.2]} 22. exd7 {[%clk 0:01:12.8]}
22... Nxf1 {[%clk 0:01:23.2]} 23. Rxf1 {[%clk 0:01:12.6]} 23... Be5 {[%clk
0:01:16.1]} 24. Bxe5 {[%clk 0:00:47.1]} 24... dxe5 {[%clk 0:01:17]} 25. g4
{[%clk 0:00:47.3]} 25... Rad8 {[%clk 0:01:10.1]} 26. gxf5 {[%clk 0:00:42.1]}
26... Rxd7 {[%clk 0:01:10]} 27. f6 {[%clk 0:00:41.8]} 27... Kg6 {[%clk
0:00:56.8]} 28. Bd3+ {[%clk 0:00:38.1]} 28... Kf7 {[%clk 0:00:55.4]} 29. Bf5
{[%clk 0:00:36.2]} 29... Rdd8 {[%clk 0:00:55.5]} 30. Be4 {[%clk 0:00:20.4]}
30... Nb8 {[%clk 0:00:43.6]} 31. Nc7 {[%clk 0:00:18.4]} 31... Nd7 {[%clk
0:00:42.2]} 32. Ne6 {[%clk 0:00:17.8]} 32... Rg8+ {[%clk 0:00:42.6]} 33. Kh2
{[%clk 0:00:16.4]} 33... Rc8 {[%clk 0:00:43.1]} 34. Bf5 {[%clk 0:00:09]} 34...
Nxf6 {[%clk 0:00:41.6]} 35. Re1 {[%clk 0:00:06.2]} 35... e4 {[%clk 0:00:40.9]}
36. Nf4 {[%clk 0:00:04.9]} 36... Rce8 {[%clk 0:00:40.9]} 37. Be6+ {[%clk
0:00:05]} 37... Ke7 {[%clk 0:00:38]} 38. Bxg8 {[%clk 0:00:05]} 38... Rxg8 {[%clk
0:00:38.1]} 39. a3 {[%clk 0:00:03.1]} 39... Kd6 {[%clk 0:00:37.8]} 40. b4 {[%clk
0:00:03.2]} 40... b6 {[%clk 0:00:33.1]} 41. Rf1 {[%clk 0:00:02.8]} 41... Ke5
{[%clk 0:00:27.9]} 42. Ne6 {[%clk 0:00:02.1]} 42... e3 {[%clk 0:00:21.1]} 43.
bxc5 {[%clk 0:00:01.7]} 43... bxc5 {[%clk 0:00:20.5]} 44. Re1 {[%clk 0:00:02.6]}
44... Kd6 {[%clk 0:00:16.6]} 45. Re2 {[%clk 0:00:02.1]} 45... Rb8 {[%clk
0:00:17.3]} 46. Rxe3 {[%clk 0:00:02.5]} 46... Rb2+ {[%clk 0:00:17.8]} 47. Kg3
{[%clk 0:00:02.8]} 47... Ra2 {[%clk 0:00:17.7]} 48. Nf4 {[%clk 0:00:03]} 48...
Rc2 {[%clk 0:00:17.2]} 49. Re6+ {[%clk 0:00:03.3]} 49... Kd7 {[%clk 0:00:17.2]}
50. Rxf6 {[%clk 0:00:03.9]} 50... Rxc4 {[%clk 0:00:17.8]} 51. Rxh6 {[%clk
0:00:03.9]} 51... Rc3+ {[%clk 0:00:18.3]} 52. Kg4 {[%clk 0:00:04.2]} 52... Rxa3
{[%clk 0:00:19.2]} 53. Kf5 {[%clk 0:00:04.4]} 53... Rf3 {[%clk 0:00:18.5]} 54.
Ke5 {[%clk 0:00:04.5]} 54... Re3+ {[%clk 0:00:17.8]} 55. Kf5 {[%clk 0:00:04.8]}
55... Rf3 {[%clk 0:00:18.4]} 56. Rc6 {[%clk 0:00:04.3]} 56... Rf2 {[%clk
0:00:16.1]} 57. h4 {[%clk 0:00:04.6]} 57... c4 {[%clk 0:00:14.1]} 58. Rxc4
{[%clk 0:00:03.9]} 58... a5 {[%clk 0:00:13.7]} 59. h5 {[%clk 0:00:03.9]} 59...
Ra2 {[%clk 0:00:13.2]} 60. Rc6 {[%clk 0:00:03.6]} 60... a4 {[%clk 0:00:13.5]}
61. Ra6 {[%clk 0:00:03.6]} 61... a3 {[%clk 0:00:14]} 62. h6 {[%clk 0:00:04.2]}
62... Ra1 {[%clk 0:00:13.9]} 63. h7 {[%clk 0:00:04.6]} 63... a2 {[%clk 0:00:14]}
64. h8=Q {[%clk 0:00:03.8]} 64... Rh1 {[%clk 0:00:14.9]} 65. Qxh1 {[%clk
0:00:02.8]} 1-0

[Event "Late-Titled-Tuesday-Blitz-September-12-2023"]
[Site "Chess.com"]
[Date "2023.09.12"]
[Round "9"]
[White "zajka-molotok"]
[Black "Garmendiarov"]
[Result "1-0"]
[WhiteElo "2503"]
[BlackElo "2359"]
[TimeControl "180+1"]
[EndTime "15:40:53 PDT"]
[Termination "zajka-molotok won by checkmate"]

1. e4 {[%clk 0:03:00.9]} 1... c5 {[%clk 0:02:59.1]} 2. Nf3 {[%clk 0:03:00.5]}
2... d6 {[%clk 0:02:58.8]} 3. Bb5+ {[%clk 0:02:59.6]} 3... Nd7 {[%clk
0:02:58.5]} 4. a4 {[%clk 0:02:59.3]} 4... Nf6 {[%clk 0:02:57.6]} 5. Nc3 {[%clk
0:02:59.2]} 5... a6 {[%clk 0:02:55.4]} 6. Be2 {[%clk 0:02:58.1]} 6... g6 {[%clk
0:02:53.7]} 7. O-O {[%clk 0:02:55.7]} 7... Bg7 {[%clk 0:02:54]} 8. d3 {[%clk
0:02:53.8]} 8... O-O {[%clk 0:02:54.1]} 9. a5 {[%clk 0:02:46.9]} 9... Nb8 {[%clk
0:02:47.2]} 10. Nd2 {[%clk 0:02:40.6]} 10... Nc6 {[%clk 0:02:43.4]} 11. Nc4
{[%clk 0:02:39.9]} 11... e6 {[%clk 0:02:41.6]} 12. Bf4 {[%clk 0:02:31]} 12... d5
{[%clk 0:02:40.8]} 13. Nb6 {[%clk 0:02:21]} 13... Ra7 {[%clk 0:02:37.3]} 14.
Nxc8 {[%clk 0:02:18.2]} 14... Qxc8 {[%clk 0:02:37.7]} 15. exd5 {[%clk
0:02:15.3]} 15... Nxd5 {[%clk 0:02:34.5]} 16. Nxd5 {[%clk 0:02:13.8]} 16... exd5
{[%clk 0:02:35.4]} 17. Bd6 {[%clk 0:02:12.1]} 17... Rd8 {[%clk 0:02:30.7]} 18.
Bxc5 {[%clk 0:02:11.5]} 18... Ra8 {[%clk 0:02:28.5]} 19. d4 {[%clk 0:02:07.1]}
19... Qf5 {[%clk 0:01:59.1]} 20. Bg4 {[%clk 0:01:57.8]} 20... Qf4 {[%clk
0:01:53]} 21. g3 {[%clk 0:01:54.4]} 21... Qf6 {[%clk 0:01:42.2]} 22. c3 {[%clk
0:01:50.9]} 22... h5 {[%clk 0:01:30.8]} 23. Bh3 {[%clk 0:01:47.7]} 23... h4
{[%clk 0:01:25.2]} 24. Qg4 {[%clk 0:01:42.3]} 24... Ne7 {[%clk 0:01:11]} 25.
Qxh4 {[%clk 0:01:32.3]} 25... Qxh4 {[%clk 0:01:09.6]} 26. gxh4 {[%clk
0:01:33.2]} 26... Nf5 {[%clk 0:01:09.6]} 27. h5 {[%clk 0:01:31]} 27... Bf6
{[%clk 0:01:06.2]} 28. hxg6 {[%clk 0:01:27.8]} 28... fxg6 {[%clk 0:01:07.1]} 29.
Bxf5 {[%clk 0:01:20.7]} 29... gxf5 {[%clk 0:01:08]} 30. Kh1 {[%clk 0:01:13.2]}
30... Kf7 {[%clk 0:01:08]} 31. Rae1 {[%clk 0:01:11.9]} 31... Rh8 {[%clk
0:01:04]} 32. Rg1 {[%clk 0:01:11.4]} 32... Rh3 {[%clk 0:00:55.2]} 33. Rg3 {[%clk
0:01:10.3]} 33... Rah8 {[%clk 0:00:55.4]} 34. Rxh3 {[%clk 0:01:08.6]} 34... Rxh3
{[%clk 0:00:56.3]} 35. Kg2 {[%clk 0:01:08.1]} 35... Rd3 {[%clk 0:00:56]} 36. Re3
{[%clk 0:01:01.3]} 36... Rd2 {[%clk 0:00:52.6]} 37. b3 {[%clk 0:00:58.4]} 37...
Rb2 {[%clk 0:00:40.7]} 38. b4 {[%clk 0:00:52.4]} 38... Bh4 {[%clk 0:00:36.9]}
39. Rf3 {[%clk 0:00:50.9]} 39... Kg6 {[%clk 0:00:35.4]} 40. Bd6 {[%clk
0:00:47.3]} 40... Bg5 {[%clk 0:00:23.3]} 41. Bf4 {[%clk 0:00:46.4]} 41... Bf6
{[%clk 0:00:22.4]} 42. Re3 {[%clk 0:00:41.3]} 42... Kf7 {[%clk 0:00:21.4]} 43.
Kg3 {[%clk 0:00:39.3]} 43... Rb1 {[%clk 0:00:20.7]} 44. h3 {[%clk 0:00:30.7]}
44... Rg1+ {[%clk 0:00:20.1]} 45. Kh2 {[%clk 0:00:30]} 45... Rg8 {[%clk
0:00:18.2]} 46. Be5 {[%clk 0:00:25.5]} 46... Bg5 {[%clk 0:00:17.2]} 47. Rg3
{[%clk 0:00:24.5]} 47... f4 {[%clk 0:00:14.3]} 48. Rg4 {[%clk 0:00:21.9]} 48...
Bh6 {[%clk 0:00:06.3]} 49. Rxg8 {[%clk 0:00:21.2]} 49... Kxg8 {[%clk 0:00:07.2]}
50. Kg2 {[%clk 0:00:21.4]} 50... Kf7 {[%clk 0:00:07.5]} 51. Kf3 {[%clk
0:00:21.6]} 51... Ke6 {[%clk 0:00:07.9]} 52. Bxf4 {[%clk 0:00:22]} 52... Bf8
{[%clk 0:00:07.1]} 53. Bd2 {[%clk 0:00:21.8]} 53... Kf5 {[%clk 0:00:07.4]} 54.
Ke2 {[%clk 0:00:18.8]} 54... Be7 {[%clk 0:00:07.1]} 55. Kd3 {[%clk 0:00:18.6]}
55... Bf6 {[%clk 0:00:06.2]} 56. c4 {[%clk 0:00:18.7]} 56... dxc4+ {[%clk
0:00:06.7]} 57. Kxc4 {[%clk 0:00:19.6]} 57... Ke6 {[%clk 0:00:07.2]} 58. d5+
{[%clk 0:00:19.6]} 58... Kd7 {[%clk 0:00:06.5]} 59. f3 {[%clk 0:00:18.9]} 59...
Be5 {[%clk 0:00:06.6]} 60. Bc3 {[%clk 0:00:19.1]} 60... Bg3 {[%clk 0:00:06.7]}
61. Bd4 {[%clk 0:00:19.2]} 61... Kc7 {[%clk 0:00:06.8]} 62. Bc5 {[%clk
0:00:18.1]} 62... Kd7 {[%clk 0:00:07.1]} 63. Kd4 {[%clk 0:00:17.2]} 63... Kc7
{[%clk 0:00:07.4]} 64. Ke4 {[%clk 0:00:17.5]} 64... Kd7 {[%clk 0:00:07.9]} 65.
Kf5 {[%clk 0:00:17.8]} 65... Kc7 {[%clk 0:00:07.8]} 66. Kg4 {[%clk 0:00:18]}
66... Be5 {[%clk 0:00:08.3]} 67. f4 {[%clk 0:00:18.1]} 67... Bg7 {[%clk
0:00:08.6]} 68. f5 {[%clk 0:00:18.4]} 68... Kd7 {[%clk 0:00:09.1]} 69. Kg5
{[%clk 0:00:18.5]} 69... Ke8 {[%clk 0:00:09]} 70. Kg6 {[%clk 0:00:18.3]} 70...
Be5 {[%clk 0:00:07.8]} 71. f6 {[%clk 0:00:18.3]} 71... Kd7 {[%clk 0:00:07.8]}
72. f7 {[%clk 0:00:18.3]} 72... Bd6 {[%clk 0:00:08.5]} 73. Bxd6 {[%clk
0:00:17.8]} 73... b5 {[%clk 0:00:09.2]} 74. Bc5 {[%clk 0:00:16.1]} 74... Kc7
{[%clk 0:00:08.6]} 75. f8=Q {[%clk 0:00:15.7]} 75... Kd7 {[%clk 0:00:09.5]} 76.
Qe7+ {[%clk 0:00:15.7]} 76... Kc8 {[%clk 0:00:10]} 77. Qe6+ {[%clk 0:00:15.6]}
77... Kb7 {[%clk 0:00:10.4]} 78. Qc6+ {[%clk 0:00:15.6]} 78... Kb8 {[%clk
0:00:10.3]} 79. Qb6+ {[%clk 0:00:14.9]} 79... Kc8 {[%clk 0:00:10.6]} 80. Qxa6+
{[%clk 0:00:15.8]} 80... Kd7 {[%clk 0:00:10.9]} 81. Qxb5+ {[%clk 0:00:15.9]}
81... Kc8 {[%clk 0:00:11.5]} 82. Qc6+ {[%clk 0:00:15.5]} 82... Kd8 {[%clk
0:00:11.9]} 83. Qb7 {[%clk 0:00:14.5]} 83... Ke8 {[%clk 0:00:12.3]} 84. Qe7#
{[%clk 0:00:15.2]} 1-0

[Event "Late-Titled-Tuesday-Blitz-September-12-2023"]
[Site "Chess.com"]
[Date "2023.09.12"]
[Round "9"]
[White "S-Fazulyanov"]
[Black "traack"]
[Result "1-0"]
[WhiteElo "2464"]
[BlackElo "2350"]
[TimeControl "180+1"]
[EndTime "15:40:58 PDT"]
[Termination "S-Fazulyanov won by checkmate"]

1. e4 {[%clk 0:03:00]} 1... c5 {[%clk 0:02:59.8]} 2. Nf3 {[%clk 0:03:00.3]} 2...
e6 {[%clk 0:03:00]} 3. c4 {[%clk 0:03:00.7]} 3... Nc6 {[%clk 0:02:59.4]} 4. Nc3
{[%clk 0:03:00.5]} 4... Nf6 {[%clk 0:02:56.4]} 5. Be2 {[%clk 0:03:00.3]} 5...
Be7 {[%clk 0:02:55.6]} 6. O-O {[%clk 0:02:59.8]} 6... O-O {[%clk 0:02:54.6]} 7.
d4 {[%clk 0:02:59.3]} 7... cxd4 {[%clk 0:02:54.4]} 8. Nxd4 {[%clk 0:02:59.9]}
8... d6 {[%clk 0:02:48]} 9. Be3 {[%clk 0:02:57.6]} 9... Bd7 {[%clk 0:02:44.1]}
10. Rc1 {[%clk 0:02:55.5]} 10... Nxd4 {[%clk 0:02:43.9]} 11. Bxd4 {[%clk
0:02:54.7]} 11... Bc6 {[%clk 0:02:44.8]} 12. f3 {[%clk 0:02:54.6]} 12... Re8
{[%clk 0:02:39.4]} 13. Qd2 {[%clk 0:02:52.9]} 13... Bf8 {[%clk 0:02:35.4]} 14.
b4 {[%clk 0:02:51.6]} 14... a6 {[%clk 0:02:24.8]} 15. a4 {[%clk 0:02:47.4]}
15... a5 {[%clk 0:02:10.2]} 16. b5 {[%clk 0:02:43.7]} 16... Bd7 {[%clk
0:02:02.4]} 17. Qe3 {[%clk 0:02:39.6]} 17... Qc8 {[%clk 0:01:54.6]} 18. Nb1
{[%clk 0:02:19.9]} 18... Rd8 {[%clk 0:01:41.9]} 19. Rc2 {[%clk 0:02:11.7]} 19...
Be8 {[%clk 0:01:40.7]} 20. Rfc1 {[%clk 0:02:10]} 20... Nd7 {[%clk 0:01:41.1]}
21. f4 {[%clk 0:02:04]} 21... Qc7 {[%clk 0:01:39.6]} 22. Bf3 {[%clk 0:02:00.1]}
22... Rac8 {[%clk 0:01:36.3]} 23. Qf2 {[%clk 0:01:30]} 23... b6 {[%clk
0:01:35.6]} 24. Be2 {[%clk 0:01:19]} 24... Nc5 {[%clk 0:01:35.6]} 25. Nc3 {[%clk
0:01:19.4]} 25... Qb7 {[%clk 0:01:21.1]} 26. Bf3 {[%clk 0:01:18]} 26... Qb8
{[%clk 0:01:20.4]} 27. Bxc5 {[%clk 0:01:17.9]} 27... Rxc5 {[%clk 0:01:19.5]} 28.
Nb1 {[%clk 0:01:12.2]} 28... Rdc8 {[%clk 0:01:17.2]} 29. Nd2 {[%clk 0:01:11.6]}
29... d5 {[%clk 0:01:06.6]} 30. exd5 {[%clk 0:01:08]} 30... Qxf4 {[%clk
0:01:07]} 31. dxe6 {[%clk 0:00:48.4]} 31... fxe6 {[%clk 0:00:53.8]} 32. Bb7
{[%clk 0:00:37.9]} 32... Qxf2+ {[%clk 0:00:52.4]} 33. Kxf2 {[%clk 0:00:38.8]}
33... R8c7 {[%clk 0:00:51.5]} 34. Be4 {[%clk 0:00:28.1]} 34... Rg5 {[%clk
0:00:49.2]} 35. Nf3 {[%clk 0:00:18.7]} 35... Bc5+ {[%clk 0:00:49.4]} 36. Kf1
{[%clk 0:00:19.6]} 36... Rg4 {[%clk 0:00:43.5]} 37. Re1 {[%clk 0:00:17.2]} 37...
Rf7 {[%clk 0:00:36.7]} 38. h3 {[%clk 0:00:16.3]} 38... Rgf4 {[%clk 0:00:32.8]}
39. Bc6 {[%clk 0:00:10.4]} 39... Rf8 {[%clk 0:00:18.9]} 40. Rxe6 {[%clk
0:00:08.5]} 40... Bg6 {[%clk 0:00:19.3]} 41. Rce2 {[%clk 0:00:08.2]} 41... Rd8
{[%clk 0:00:19.7]} 42. Bd5 {[%clk 0:00:08.9]} 42... Kf8 {[%clk 0:00:18.9]} 43.
Ke1 {[%clk 0:00:07.4]} 43... Bd3 {[%clk 0:00:18.7]} 44. Rd2 {[%clk 0:00:07.2]}
44... Bb4 {[%clk 0:00:19.1]} 45. Ne5 {[%clk 0:00:05.6]} 45... Bxd2+ {[%clk
0:00:16.8]} 46. Kxd2 {[%clk 0:00:06.3]} 46... Be4 {[%clk 0:00:17.4]} 47. Ke3
{[%clk 0:00:04.9]} 47... Bxd5 {[%clk 0:00:16.4]} 48. cxd5 {[%clk 0:00:05.8]}
48... Rxa4 {[%clk 0:00:15.4]} 49. d6 {[%clk 0:00:04.5]} 49... Ra3+ {[%clk
0:00:15.4]} 50. Ke4 {[%clk 0:00:04.8]} 50... Ra1 {[%clk 0:00:15.4]} 51. Nc6
{[%clk 0:00:03.8]} 51... Rd7 {[%clk 0:00:15.8]} 52. Ne5 {[%clk 0:00:03.6]} 52...
Re1+ {[%clk 0:00:15.3]} 53. Kd5 {[%clk 0:00:04.5]} 53... Rd1+ {[%clk 0:00:15.2]}
54. Kc6 {[%clk 0:00:05]} 54... Rd8 {[%clk 0:00:14.9]} 55. Kc7 {[%clk 0:00:05.5]}
55... Re8 {[%clk 0:00:13]} 56. Rxe8+ {[%clk 0:00:01.5]} 56... Kxe8 {[%clk
0:00:13.9]} 57. d7+ {[%clk 0:00:02.4]} 57... Ke7 {[%clk 0:00:14.8]} 58. Nc6+
{[%clk 0:00:02.9]} 58... Kf6 {[%clk 0:00:13.6]} 59. d8=Q+ {[%clk 0:00:02.7]}
59... Rxd8 {[%clk 0:00:14.5]} 60. Kxd8 {[%clk 0:00:03.3]} 60... a4 {[%clk
0:00:15.4]} 61. Nb4 {[%clk 0:00:03.2]} 61... Ke5 {[%clk 0:00:14.3]} 62. Kc7
{[%clk 0:00:03.8]} 62... Kf4 {[%clk 0:00:15.2]} 63. Kxb6 {[%clk 0:00:04.4]}
63... Kg3 {[%clk 0:00:16.1]} 64. Ka5 {[%clk 0:00:05.3]} 64... Kxg2 {[%clk
0:00:17]} 65. b6 {[%clk 0:00:05.9]} 65... g5 {[%clk 0:00:17.9]} 66. b7 {[%clk
0:00:06.4]} 66... h5 {[%clk 0:00:18.8]} 67. b8=Q {[%clk 0:00:06.5]} 67... g4
{[%clk 0:00:19.7]} 68. Qb7+ {[%clk 0:00:06.6]} 68... Kxh3 {[%clk 0:00:19.6]} 69.
Qb6 {[%clk 0:00:07.5]} 69... g3 {[%clk 0:00:20.1]} 70. Qe3 {[%clk 0:00:08.4]}
70... h4 {[%clk 0:00:20.3]} 71. Nd3 {[%clk 0:00:08.4]} 71... Kh2 {[%clk
0:00:20.7]} 72. Ne1 {[%clk 0:00:08.6]} 72... g2 {[%clk 0:00:20.5]} 73. Qf4+
{[%clk 0:00:09.1]} 73... Kg1 {[%clk 0:00:19.9]} 74. Qf3 {[%clk 0:00:09.4]} 74...
Kh2 {[%clk 0:00:14.8]} 75. Qxg2# {[%clk 0:00:09.9]} 1-0